bitfinex-derivatives/quotes_BTCF0:USTF0_20250127
["timestamp","ask_amount","ask_price","bid_price","bid_amount"]
[1737983587211,0.3608,101390.0,101380.0,0.197344]
[1737983587414,0.3608,101390.0,101380.0,0.41305862]
[1737983587610,0.66385817,101390.0,101370.0,0.197357]
[1737983587809,0.46653217,101390.0,101370.0,0.197346]
[1737983588026,0.3608,101380.0,101360.0,0.41309362]
[1737983588226,0.3608,101370.0,101360.0,0.197379]
[1737983588411,0.55817,101370.0,101360.0,0.00014775]
[1737983588612,0.197387,101360.0,101340.0,0.197419]
[1737983588825,0.3608,101350.0,101340.0,0.197419]
[1737983589320,1.02567596,101350.0,101330.0,0.197437]
[1737983589513,0.46747296,101350.0,101320.0,0.25666447]
[1737983589719,0.3608,101330.0,101320.0,0.45412247]
[1737983590127,0.47342372,101330.0,101320.0,0.45412247]
[1737983590420,0.47342372,101330.0,101320.0,0.45412047]
[1737983591420,0.67086172,101330.0,101320.0,0.04094985]
[1737983591722,0.47342372,101330.0,101320.0,0.23840685]
[1737983592126,0.47342372,101330.0,101320.0,0.45412147]
[1737983592520,0.11262372,101330.0,101320.0,0.45412147]
[1737983592827,0.36094775,101350.0,101330.0,0.197423]
[1737983593132,0.4685384,101350.0,101340.0,0.197403]
[1737983593519,0.1077384,101350.0,101340.0,1.91311762]
[1737983593814,0.4685384,101350.0,101340.0,1.697403]
[1737983594322,0.4685384,101350.0,101330.0,0.00014775]
[1737983594521,0.3608,101340.0,101330.0,0.00014775]
[1737983594919,0.66843676,101340.0,101330.0,0.00014775]
[1737983595117,0.47103376,101340.0,101330.0,0.00014775]
[1737983595320,0.47103376,101340.0,101330.0,0.19757075]
[1737983595625,0.47103376,101340.0,101330.0,0.00014775]
[1737983595826,0.61493376,101340.0,101330.0,0.00014775]
[1737983596218,0.61493376,101340.0,101330.0,0.19757075]
[1737983596521,0.47103376,101340.0,101330.0,0.19757075]
[1737983596722,0.36094775,101350.0,101340.0,0.197404]
[1737983596723,0.00014775,101350.0,101340.0,0.197404]
[1737983597022,0.11094793,101350.0,101340.0,0.197404]
[1737983597523,0.11094793,101350.0,101340.0,0.41311862]
[1737983597724,0.3608,101380.0,101360.0,0.197365]
[1737983598023,0.11110567,101360.0,101350.0,0.5139]
[1737983598222,0.11110567,101360.0,101350.0,0.711285]
[1737983598423,0.3608,101380.0,101360.0,0.197351]
[1737983598723,0.47190567,101370.0,101350.0,0.5139]
[1737983598922,0.3608,101360.0,101340.0,0.00789]
[1737983599122,0.3608,101350.0,101340.0,0.205293]
[1737983599423,0.10657292,101350.0,101340.0,0.36094775]
[1737983599617,0.3608,101430.0,101410.0,0.197258]
[1737983599816,0.3608,101430.0,101370.0,0.049336]
[1737983599817,0.558032,101430.0,101420.0,0.21571462]
[1737983600018,0.46752067,101430.0,101420.0,0.21571462]
[1737983600217,0.46752067,101430.0,101420.0,0.41296362]
[1737983600420,6.7e-07,101430.0,101420.0,0.77376362]
[1737983600723,0.00147978,101450.0,101440.0,0.19721]
[1737983600919,0.36227978,101450.0,101440.0,0.19721]
[1737983601123,0.46958103,101450.0,101420.0,0.14004691]
[1737983601323,0.558035,101430.0,101410.0,0.00147925]
[1737983601624,0.197279,101410.0,101370.0,0.14152666]
[1737983601825,0.197279,101410.0,101390.0,0.197307]
[1737983601826,0.3608,101400.0,101390.0,0.197307]
[1737983602020,0.3608,101400.0,101390.0,0.33735391]
[1737983602220,0.10594719,101400.0,101390.0,0.33735391]
[1737983602523,0.10594719,101400.0,101390.0,0.41343593]
[1737983603629,0.46674719,101400.0,101380.0,0.19746575]
[1737983604128,0.46674719,101400.0,101390.0,0.41343593]
[1737983604828,0.10594719,101400.0,101390.0,0.197307]
[1737983605023,0.46674719,101400.0,101390.0,0.197307]
[1737983605330,0.10594719,101400.0,101390.0,0.41343593]
[1737983605823,0.10594719,101400.0,101390.0,0.77423593]
[1737983606030,0.36094775,101410.0,101400.0,0.197287]
[1737983606329,0.4641307,101410.0,101400.0,0.197287]
[1737983606716,0.4641307,101410.0,101390.0,0.41343193]
[1737983606922,0.3608,101400.0,101390.0,0.41343193]
[1737983607122,0.4641307,101410.0,101390.0,0.41343193]
[1737983607329,0.47350689,101400.0,101390.0,0.41343193]
[1737983607725,0.47365464,101410.0,101390.0,0.197303]
[1737983607925,0.47350689,101400.0,101390.0,0.197303]
[1737983608230,0.3608,101400.0,101390.0,0.41343193]
[1737983608431,0.47035823,101400.0,101390.0,0.41343193]
[1737983608630,0.10955823,101400.0,101390.0,0.41343193]
[1737983608830,0.10955823,101400.0,101390.0,0.77423193]
[1737983609133,0.00014775,101410.0,101400.0,0.197287]
[1737983609328,0.00014775,101410.0,101400.0,0.558087]
[1737983609534,0.3608,101440.0,101430.0,0.197229]
[1737983609732,0.1544,101450.0,101430.0,0.197229]
[1737983610030,0.10704074,101440.0,101430.0,0.197229]
[1737983610228,0.46543145,101450.0,101440.0,0.19721]
[1737983610537,0.51947932,101460.0,101450.0,0.19719]
[1737983610834,0.10463145,101450.0,101440.0,0.197207]
[1737983611025,0.46700925,101460.0,101450.0,0.23661]
[1737983611327,9.848e-05,101460.0,101450.0,0.23661]
[1737983611535,0.10732665,101460.0,101450.0,0.23661]
[1737983612927,0.66529765,101460.0,101450.0,0.03942]
[1737983613429,0.82759765,101460.0,101450.0,0.03942]
[1737983613822,0.63042665,101460.0,101450.0,0.03942]
[1737983614324,0.82759765,101460.0,101450.0,0.03942]
[1737983614524,1.14655558,101460.0,101430.0,0.00014775]
[1737983614721,0.91881,101440.0,101430.0,0.00014775]
[1737983615130,1.03147228,101440.0,101430.0,0.00014775]
[1737983615837,1.03147228,101440.0,101430.0,0.03957775]
[1737983616240,1.35039121,101440.0,101420.0,0.0014788]
[1737983616529,0.77703693,101430.0,101390.0,0.16795055]
[1737983616731,0.3608,101400.0,101390.0,0.16795055]
[1737983617134,0.46705519,101400.0,101380.0,0.197316]
[1737983617432,0.46705519,101400.0,101390.0,0.41343593]
[1737983617636,0.10640294,101400.0,101390.0,0.41343593]
[1737983617835,0.46720294,101400.0,101390.0,0.41343593]
[1737983618135,0.10640294,101400.0,101390.0,0.197307]
[1737983618336,0.10640294,101400.0,101390.0,0.41343593]
[1737983618837,0.46720294,101400.0,101390.0,0.41343593]
[1737983619037,0.46720294,101400.0,101380.0,0.59772175]
[1737983619430,0.3608,101390.0,101380.0,0.23692175]
[1737983620036,0.464539,101390.0,101380.0,0.03959775]
[1737983620333,0.98066793,101390.0,101360.0,0.00147957]
[1737983620530,0.3608,101380.0,101370.0,0.21612893]
[1737983620730,0.464539,101390.0,101370.0,0.21612893]
[1737983620731,0.464539,101390.0,101380.0,0.197326]
[1737983621035,0.3608,101390.0,101380.0,0.197326]
[1737983621230,0.46343239,101390.0,101380.0,0.197326]
[1737983621434,0.3608,101420.0,101380.0,1.18677]
[1737983621633,0.00147958,101430.0,101420.0,0.197248]
[1737983622133,0.10263239,101430.0,101420.0,0.356748]
[1737983622533,0.3608,101450.0,101440.0,0.197209]
[1737983622835,0.3608,101460.0,101450.0,0.19719]
[1737983623030,0.36094775,101460.0,101450.0,0.19719]
[1737983623237,0.466753,101460.0,101450.0,0.19719]
[1737983623739,0.466753,101460.0,101450.0,0.41331893]
[1737983624032,0.466753,101460.0,101450.0,0.19719]
[1737983624432,0.466753,101460.0,101440.0,0.19734975]
[1737983624638,0.3608,101450.0,101440.0,0.19735675]
[1737983624832,0.3608,101450.0,101440.0,0.00014775]
[1737983625033,0.46713484,101450.0,101440.0,0.00014775]
[1737983625839,0.66432484,101450.0,101440.0,0.00014775]
[1737983626029,0.10633484,101450.0,101440.0,0.55815675]
[1737983626235,0.00014775,101460.0,101450.0,0.197189]
[1737983626445,0.00014775,101460.0,101450.0,2.27411793]
[1737983626737,0.037,101470.0,101460.0,0.19717]
[1737983626938,0.037,101470.0,101460.0,0.55797]
[1737983627141,0.14825101,101470.0,101460.0,0.55797]
[1737983627342,0.50905101,101470.0,101450.0,2.07832893]
[1737983627641,0.14825101,101470.0,101460.0,0.77409893]
[1737983627839,0.14834949,101470.0,101460.0,0.41329893]
[1737983628046,0.14834949,101470.0,101460.0,0.77409893]
[1737983628937,0.00147904,101490.0,101480.0,0.197131]
[1737983629136,0.00147904,101490.0,101480.0,0.77405993]
[1737983629340,0.11261092,101490.0,101480.0,0.77405993]
[1737983629947,0.11113188,101490.0,101480.0,0.77405993]
[1737983630139,0.3608,101500.0,101490.0,0.197112]
[1737983630445,0.10410912,101500.0,101490.0,0.557912]
[1737983632553,0.46490912,101500.0,101490.0,0.197112]
[1737983633050,0.10410912,101500.0,101490.0,0.197112]
[1737983633243,0.10410912,101500.0,101490.0,0.41324093]
[1737983635846,0.10410912,101500.0,101490.0,0.77404093]
[1737983636752,0.36610525,101530.0,101500.0,0.049273]
[1737983636945,0.56313925,101530.0,101520.0,0.21612893]
[1737983637141,0.66890991,101530.0,101500.0,0.57692893]
[1737983637352,0.3608,101520.0,101500.0,0.77415568]
[1737983637553,0.3608,101510.0,101500.0,0.00014775]
[1737983637754,0.557873,101510.0,101500.0,0.00014775]
[1737983637944,0.66377883,101510.0,101500.0,0.00014775]
[1737983638346,0.46670583,101510.0,101500.0,0.19723975]
[1737983638554,0.46670583,101510.0,101500.0,0.00014775]
[1737983640063,0.66377883,101510.0,101500.0,0.00014775]
[1737983640361,0.82067883,101510.0,101480.0,0.197127]
[1737983640661,0.3608,101490.0,101480.0,0.197127]
[1737983640958,0.3608,101510.0,101490.0,0.1971]
[1737983641160,0.3608,101510.0,101490.0,0.41322893]
[1737983641356,0.10623359,101510.0,101500.0,0.197092]
[1737983641556,0.46703359,101510.0,101500.0,0.197092]
[1737983642161,0.66410859,101510.0,101490.0,0.41338468]
[1737983642353,0.3608,101500.0,101490.0,0.41338468]
[1737983642853,0.1046638,101500.0,101490.0,0.41338468]
[1737983643357,0.00014775,101510.0,101500.0,0.197092]
[1737983643855,0.11336746,101510.0,101500.0,0.77402093]
[1737983644050,0.00014775,101510.0,101500.0,0.93012093]
[1737983644253,0.10492998,101510.0,101500.0,0.93012093]
[1737983644757,0.10492998,101510.0,101500.0,0.77402093]
[1737983647457,0.10492998,101510.0,101500.0,2.27402093]
[1737983647658,0.00530525,101530.0,101520.0,0.197053]
[1737983647960,0.197053,101520.0,101510.0,0.197064]
[1737983648161,0.197073,101510.0,101500.0,0.41321293]
[1737983648560,0.10658266,101510.0,101500.0,0.77401293]
[1737983648862,0.30365566,101510.0,101500.0,0.197084]
[1737983649166,0.10658266,101510.0,101500.0,0.197084]
[1737983649666,0.46738266,101510.0,101490.0,0.19725575]
[1737983649866,0.3608,101500.0,101470.0,0.0133874]
[1737983650055,0.3608,101480.0,101470.0,0.00147828]
[1737983650258,0.557931,101480.0,101470.0,0.00147828]
[1737983650457,0.47312151,101480.0,101470.0,0.00147828]
[1737983650766,0.11232151,101480.0,101470.0,0.23804828]
[1737983650966,0.11232151,101480.0,101470.0,0.59884828]
[1737983651159,0.3608,101510.0,101500.0,0.197092]
[1737983651357,0.36227829,101520.0,101510.0,0.197073]
[1737983651554,0.00147829,101520.0,101510.0,0.77400193]
[1737983651760,0.1102735,101520.0,101510.0,2.27400193]
[1737983651963,0.1102735,101520.0,101510.0,0.41320193]
[1737983651964,0.4710735,101520.0,101510.0,0.41320193]
[1737983652364,0.4710735,101520.0,101510.0,0.197073]
[1737983653161,0.4710735,101520.0,101510.0,1.91320193]
[1737983653469,0.4710735,101520.0,101510.0,0.41320193]
[1737983654563,0.1102735,101520.0,101510.0,0.77400193]
[1737983655068,0.1102735,101520.0,101510.0,0.93920193]
[1737983655069,0.10879521,101520.0,101510.0,0.93920193]
[1737983655370,0.00530525,101530.0,101520.0,0.197053]
[1737983655761,0.11175211,101530.0,101520.0,0.557853]
[1737983655962,0.51787779,101550.0,101520.0,0.3608]
[1737983656162,0.71488179,101550.0,101530.0,0.19703]
[1737983656359,0.10259223,101540.0,101530.0,0.19703]
[1737983656568,0.81747402,101550.0,101530.0,0.19717775]
[1737983656872,0.10259223,101540.0,101530.0,0.19717775]
[1737983657172,0.10407002,101550.0,101540.0,0.197014]
[1737983657472,0.3608,101580.0,101560.0,0.19697]
[1737983657660,0.3608,101580.0,101570.0,0.196956]
[1737983657866,0.46649951,101580.0,101570.0,0.196956]
[1737983658070,0.3608404,101590.0,101570.0,0.57692893]
[1737983658274,0.3608404,101590.0,101580.0,0.196937]
[1737983658475,0.47156175,101590.0,101580.0,0.41306593]
[1737983658676,0.47156175,101590.0,101580.0,0.21612893]
[1737983659467,0.3608404,101590.0,101570.0,0.5095]
[1737983659667,0.46903138,101590.0,101570.0,0.3608]
[1737983659872,0.46903138,101590.0,101570.0,0.57692893]
[1737983660074,0.3608,101580.0,101560.0,0.21627668]
[1737983660269,0.196944,101580.0,101560.0,0.36094775]
[1737983660475,0.10668663,101580.0,101570.0,0.77388593]
[1737983660878,0.3608404,101590.0,101570.0,0.78175593]
[1737983661378,0.66494867,101590.0,101570.0,0.58479893]
[1737983661880,0.46802767,101590.0,101570.0,0.77388493]
[1737983662180,0.66495167,101590.0,101570.0,0.77388493]
[1737983662379,0.4608,101600.0,101580.0,0.55774]
[1737983662380,0.1,101600.0,101580.0,0.55774]
[1737983662576,0.04449959,101600.0,101590.0,0.77384893]
[1737983663080,0.04449959,101600.0,101590.0,1.07384893]
[1737983663276,0.557647,101630.0,101600.0,0.196888]
[1737983663474,0.557647,101630.0,101610.0,0.21612893]
[1737983663675,0.10970826,101620.0,101610.0,0.57692893]
[1737983663875,0.3608,101660.0,101610.0,2.37692893]
[1737983664076,0.557585,101660.0,101650.0,0.21612893]
[1737983664276,0.66407594,101660.0,101650.0,0.21612893]
[1737983665579,0.46729094,101660.0,101650.0,0.21612893]
[1737983666175,0.66407494,101660.0,101640.0,1.50154775]
[1737983666476,0.66407494,101660.0,101640.0,2.07707668]
[1737983666780,0.557604,101650.0,101640.0,0.00014775]
[1737983666977,0.46729094,101660.0,101640.0,0.00014775]
[1737983667183,0.3608,101660.0,101650.0,0.21612893]
[1737983667376,0.46739776,101660.0,101650.0,0.21612893]
[1737983667577,0.66418176,101660.0,101650.0,0.21612893]
[1737983667777,0.46739776,101660.0,101650.0,0.21612893]
[1737983668585,0.66419176,101660.0,101640.0,0.00014775]
[1737983668884,0.196801,101650.0,101640.0,0.00014775]
[1737983669184,0.3608,101660.0,101640.0,0.19696075]
[1737983669383,0.10495482,101650.0,101640.0,0.19696075]
[1737983669578,0.46575482,101650.0,101640.0,0.19696075]
[1737983669780,0.3608,101650.0,101640.0,0.19696075]
[1737983670085,0.10495482,101650.0,101640.0,0.19696075]
[1737983670485,0.5102765,101670.0,101640.0,0.55776075]
[1737983670685,0.7070395,101670.0,101640.0,0.55776075]
[1737983670883,0.10333195,101650.0,101640.0,0.55776075]
[1737983671188,0.3608,101660.0,101640.0,0.77388968]
[1737983671379,0.11119367,101650.0,101640.0,0.77388968]
[1737983671580,0.47199367,101660.0,101640.0,0.77388968]
[1737983671782,0.3608,101660.0,101640.0,0.77388968]
[1737983671981,0.11119367,101650.0,101640.0,0.77388968]
[1737983672181,0.47199367,101660.0,101640.0,0.77388968]
[1737983672381,0.1494765,101670.0,101650.0,0.196801]
[1737983672588,0.1494765,101670.0,101660.0,0.21612893]
[1737983672882,0.26212069,101670.0,101660.0,0.21612893]
[1737983673089,0.62292069,101670.0,101660.0,0.21612893]
[1737983673287,0.0014765,101670.0,101660.0,0.77371093]
[1737983673592,0.46888974,101670.0,101660.0,0.41291093]
[1737983673791,0.46888974,101670.0,101660.0,1.91291093]
[1737983674083,0.46888974,101670.0,101660.0,0.21612893]
[1737983674286,0.81375274,101670.0,101660.0,0.21612893]
[1737983674787,0.81375274,101670.0,101650.0,0.21612893]
[1737983674988,0.3608,101660.0,101650.0,0.21612893]
[1737983675298,0.46842982,101660.0,101650.0,0.41292993]
[1737983675492,0.49793995,101660.0,101650.0,0.41292993]
[1737983675792,0.49793995,101660.0,101650.0,0.25547893]
[1737983676189,0.49793995,101660.0,101650.0,0.45227993]
[1737983677293,0.13713995,101660.0,101650.0,0.45227993]
[1737983677491,9.5e-07,101660.0,101650.0,0.81307993]
[1737983677696,0.09317808,101690.0,101680.0,0.196743]
[1737983677988,0.06049654,101700.0,101690.0,0.196724]
[1737983678196,0.06049654,101700.0,101690.0,0.557524]
[1737983678394,0.06049654,101700.0,101690.0,2.057524]
[1737983678890,0.17082216,101700.0,101690.0,2.057524]
[1737983679096,0.06049654,101700.0,101690.0,2.065384]
[1737983679291,0.06049654,101700.0,101690.0,1.50786]
[1737983679488,0.06049654,101700.0,101690.0,1.704584]
[1737983679489,0.17029,101700.0,101690.0,1.704584]
[1737983679689,0.06049654,101700.0,101690.0,1.704584]
[1737983680091,0.0001,101740.0,101690.0,2.21784]
[1737983680393,0.10363738,101720.0,101710.0,0.41280393]
[1737983680591,0.66110338,101720.0,101710.0,0.21612893]
[1737983680793,0.196685,101710.0,101700.0,0.00014775]
[1737983680994,0.22605577,101700.0,101690.0,0.00786]
[1737983681295,0.196724,101690.0,101680.0,0.00786]
[1737983681495,0.557524,101690.0,101680.0,0.00786]
[1737983681691,0.66276815,101690.0,101680.0,0.00786]
[1737983681890,0.66276815,101690.0,101670.0,0.21612893]
[1737983682085,0.3608,101680.0,101670.0,0.21627668]
[1737983682598,0.46551744,101680.0,101670.0,0.21627668]
[1737983682996,0.3608,101680.0,101670.0,0.41303968]
[1737983683185,0.46551744,101680.0,101670.0,0.21627668]
[1737983683385,0.66226044,101680.0,101670.0,0.00014775]
[1737983683600,0.46551744,101680.0,101670.0,0.00014775]
[1737983683801,0.46551744,101680.0,101670.0,0.21627668]
[1737983684100,0.46551744,101680.0,101670.0,0.41303968]
[1737983684291,0.46551744,101680.0,101670.0,0.00014775]
[1737983684491,0.66226044,101680.0,101670.0,0.00014775]
[1737983685301,0.46551744,101680.0,101670.0,0.00014775]
[1737983686100,0.46551744,101680.0,101670.0,0.19691075]
[1737983686300,0.66226044,101680.0,101670.0,0.00014775]
[1737983687099,0.196782,101660.0,101650.0,0.03935]
[1737983687294,0.196801,101650.0,101640.0,0.00147574]
[1737983687501,0.77372993,101650.0,101640.0,0.00147574]
[1737983687694,0.67168713,101650.0,101640.0,0.00147574]
[1737983687996,0.11408613,101650.0,101640.0,0.19829674]
[1737983688197,0.3608,101650.0,101640.0,0.00147574]
[1737983688392,0.46427692,101650.0,101640.0,0.04082574]
[1737983688594,0.49378995,101650.0,101640.0,0.04082574]
[1737983689399,0.69059095,101650.0,101640.0,0.04082574]
[1737983689796,0.49378995,101650.0,101640.0,0.04082574]
[1737983689997,0.69059095,101650.0,101640.0,0.04082574]
[1737983690395,0.49378995,101650.0,101640.0,0.04082574]
[1737983690599,0.13298995,101650.0,101640.0,0.04082574]
[1737983690799,0.49378995,101650.0,101640.0,0.04082574]
[1737983692002,0.3608,101680.0,101640.0,0.40162574]
[1737983692294,0.3608,101680.0,101670.0,0.41289193]
[1737983692295,0.10493658,101680.0,101670.0,0.41289193]
[1737983692806,0.46573658,101680.0,101670.0,0.41289193]
[1737983693006,0.46573658,101680.0,101670.0,1.91289193]
[1737983693707,0.36094775,101690.0,101680.0,0.196743]
[1737983693708,0.00014775,101690.0,101680.0,0.196743]
[1737983693904,0.00014775,101690.0,101680.0,0.557543]
[1737983694206,0.02935077,101700.0,101690.0,0.196724]
[1737983694409,0.02935077,101700.0,101690.0,0.77365293]
[1737983694711,0.5095,101730.0,101710.0,0.196679]
[1737983694899,0.51146598,101730.0,101710.0,0.196679]
[1737983695101,0.10350015,101720.0,101710.0,0.196679]
[1737983695300,0.61496613,101730.0,101710.0,0.19682675]
[1737983695506,0.51146598,101730.0,101710.0,0.19682675]
[1737983695808,0.61877588,101730.0,101710.0,0.19682675]
[1737983696007,0.0001,101740.0,101720.0,0.3608]
[1737983696202,0.0001,101740.0,101730.0,0.41277493]
[1737983696511,0.10950126,101740.0,101730.0,0.41277493]
[1737983696807,0.47030126,101740.0,101730.0,0.21612893]
[1737983697311,0.47030126,101740.0,101730.0,0.41277493]
[1737983697501,0.0001,101740.0,101730.0,0.77357493]
[1737983697704,0.3608,101740.0,101730.0,0.21612893]
[1737983698612,0.4690328,101740.0,101730.0,0.21612893]
[1737983698808,0.6656638,101740.0,101710.0,0.41295868]
[1737983699007,0.3608,101730.0,101710.0,0.41295868]
[1737983699209,0.3608,101730.0,101710.0,0.21627668]
[1737983699413,0.46515257,101730.0,101720.0,0.196667]
[1737983699710,0.46515257,101730.0,101710.0,0.41295768]
[1737983700512,0.3608,101720.0,101710.0,0.21627668]
[1737983700901,0.3608,101720.0,101710.0,0.41296268]
[1737983701207,0.3608,101730.0,101720.0,0.196653]
[1737983701604,0.3608,101740.0,101720.0,0.196653]
[1737983701605,0.00295751,101750.0,101740.0,0.196628]
[1737983701808,0.00295751,101750.0,101740.0,2.057428]
[1737983702001,0.108771,101750.0,101740.0,1.696628]
[1737983702201,0.108771,101750.0,101740.0,2.057428]
[1737983702403,0.00051407,101760.0,101750.0,0.196609]
[1737983702712,0.00051407,101760.0,101750.0,0.41273793]
[1737983703011,0.36131407,101760.0,101750.0,1.5]
[1737983703212,0.19661,101750.0,101730.0,0.41292168]
[1737983703509,0.3608,101750.0,101740.0,0.196629]
[1737983703705,0.11175863,101750.0,101740.0,0.196629]
[1737983704109,0.50811407,101760.0,101750.0,0.19661]
[1737983704306,0.00051407,101760.0,101750.0,0.41273893]
[1737983704509,0.11434622,101760.0,101750.0,0.41273893]
[1737983705206,0.00051407,101760.0,101750.0,0.41273893]
[1737983705611,0.46848433,101760.0,101740.0,0.3608]
[1737983705808,0.46848433,101760.0,101740.0,0.196626]
[1737983706023,0.62288433,101760.0,101740.0,0.196626]
[1737983706407,0.3608,101750.0,101730.0,0.56972268]
[1737983706607,0.55743,101740.0,101730.0,0.00014775]
[1737983706902,0.55743,101740.0,101720.0,0.00147435]
[1737983706903,0.196649,101730.0,101720.0,0.00147435]
[1737983707108,0.716149,101730.0,101720.0,0.00147435]
[1737983707303,0.196707,101700.0,101690.0,0.02458]
[1737983707511,0.3608,101700.0,101680.0,0.00147508]
[1737983707714,0.3608,101700.0,101650.0,0.52092]
[1737983707715,0.62611393,101690.0,101650.0,0.01572]
[1737983707913,0.918384,101660.0,101640.0,0.03935]
[1737983708103,0.3608,101650.0,101640.0,0.03935]
[1737983708510,0.196837,101640.0,101620.0,0.00147592]
[1737983708717,0.918442,101630.0,101620.0,0.00147592]
[1737983709013,0.196871,101620.0,101600.0,0.10787]
[1737983709309,0.7216,101610.0,101600.0,0.10787]
[1737983709711,1.0311062,101610.0,101600.0,0.14724]
[1737983710113,0.8342252,101610.0,101570.0,0.00147687]
[1737983710307,0.557739,101580.0,101540.0,0.57692893]
[1737983710508,0.3608,101560.0,101540.0,0.01130199]
[1737983710809,0.3608,101550.0,101540.0,0.197012]
[1737983711010,0.46980068,101560.0,101540.0,0.197012]
[1737983711209,0.46980068,101560.0,101540.0,0.557812]
[1737983711210,0.10900068,101550.0,101540.0,0.557812]
[1737983711515,0.46946078,101560.0,101540.0,0.236402]
[1737983711715,0.46931303,101550.0,101540.0,0.03939]
[1737983711910,0.36094775,101560.0,101540.0,0.236407]
[1737983712114,0.10866078,101560.0,101550.0,0.77392693]
[1737983712309,0.3608,101580.0,101550.0,0.57692893]
[1737983712504,0.3608,101580.0,101570.0,0.21612893]
[1737983712710,0.47466907,101580.0,101550.0,0.77392293]
[1737983712911,0.3608,101570.0,101550.0,0.21612893]
[1737983713118,0.3608,101560.0,101550.0,0.05916]
[1737983713419,0.3608,101560.0,101540.0,0.03939]
[1737983713420,0.46636474,101560.0,101540.0,0.03939]
[1737983713618,0.557798,101550.0,101520.0,0.0093476]
[1737983713812,0.7216,101530.0,101520.0,0.0014776]
[1737983714114,1.02420174,101530.0,101500.0,0.1]
[1737983714416,0.46636474,101530.0,101510.0,0.21612893]
[1737983714616,0.46636474,101530.0,101510.0,0.41337593]
[1737983714819,0.46636474,101530.0,101510.0,0.45775593]
[1737983715115,0.46651249,101530.0,101510.0,0.26083668]
[1737983715415,0.10571249,101530.0,101520.0,0.197055]
[1737983715616,0.1591,101570.0,101540.0,0.197005]
[1737983715805,0.1591,101570.0,101560.0,0.3608]
[1737983716006,0.10983302,101560.0,101550.0,0.3608]
[1737983716211,0.3608,101560.0,101530.0,0.3608]
[1737983716412,0.197035,101540.0,101520.0,0.3608]
[1737983716716,0.31058687,101540.0,101520.0,0.3608]
[1737983717011,0.67153462,101540.0,101520.0,0.36094775]
[1737983717219,0.47449962,101540.0,101520.0,0.36094775]
[1737983717416,0.57692893,101530.0,101510.0,0.04456]
[1737983717620,0.197075,101510.0,101500.0,0.1]
[1737983717808,0.197075,101510.0,101460.0,0.3608]
[1737983717809,0.21612893,101500.0,101460.0,0.3608]
[1737983718120,0.55792,101490.0,101470.0,0.3608]
[1737983718310,0.3608,101490.0,101470.0,0.3608]
[1737983718512,0.1090891,101490.0,101480.0,0.3608]
[1737983718820,0.10923685,101490.0,101480.0,0.40021]
[1737983719024,0.52207863,101520.0,101480.0,2.097343]
[1737983719317,0.1090891,101510.0,101480.0,0.40021]
[1737983719521,0.57692893,101500.0,101480.0,0.40021]
[1737983720008,0.57692893,101500.0,101480.0,0.03941]
[1737983720009,0.557913,101490.0,101480.0,0.03941]
[1737983720213,0.197133,101480.0,101470.0,0.00014775]
[1737983720521,0.197188,101460.0,101430.0,0.00147839]
[1737983720714,0.3608,101450.0,101430.0,0.00147839]
[1737983720917,0.8797233,101460.0,101430.0,0.36227839]
[1737983721216,0.46640637,101450.0,101430.0,0.00147839]
[1737983721422,0.77413993,101440.0,101430.0,0.03943]
[1737983721722,0.19725,101420.0,101390.0,0.57840832]
[1737983721910,0.3608,101410.0,101390.0,0.36227939]
[1737983722108,0.41337893,101420.0,101400.0,0.3608]
[1737983722109,0.10377327,101420.0,101400.0,0.3608]
[1737983722317,0.10377327,101410.0,101390.0,0.36227939]
[1737983722516,0.77417993,101420.0,101390.0,0.36242714]
[1737983722720,0.6862722,101420.0,101390.0,0.55972614]
[1737983722918,0.10919552,101410.0,101400.0,0.3608]
[1737983723223,0.10934327,101420.0,101400.0,0.3608]
[1737983723418,0.10919552,101410.0,101400.0,0.3608]
[1737983723627,0.36094775,101420.0,101390.0,0.40187714]
[1737983723919,0.10537473,101410.0,101400.0,0.3608]
[1737983724119,0.00014775,101420.0,101400.0,0.3608]
[1737983724322,0.19740175,101420.0,101400.0,0.3608]
[1737983724516,0.10357072,101410.0,101400.0,0.3608]
[1737983724716,0.10371847,101420.0,101400.0,0.3608]
[1737983724913,0.10357072,101410.0,101400.0,0.558084]
[1737983725122,0.10357072,101410.0,101400.0,0.918884]
[1737983725323,0.00147964,101440.0,101400.0,2.5216]
[1737983725530,0.00147964,101440.0,101430.0,0.7216]
[1737983725824,0.11388129,101440.0,101430.0,0.3608]
[1737983726819,0.31109229,101440.0,101430.0,0.3608]
[1737983727021,0.11388129,101440.0,101430.0,0.3608]
[1737983727932,0.11240165,101440.0,101430.0,0.3608]
[1737983728425,0.00014775,101450.0,101440.0,0.197211]
[1737983728724,0.11073551,101450.0,101440.0,0.3608]
[1737983729117,0.11073551,101450.0,101440.0,0.558011]
[1737983729319,0.00147913,101480.0,101440.0,0.410102]
[1737983729625,0.19852039,101530.0,101490.0,0.197108]
[1737983729827,0.19852039,101530.0,101510.0,0.3608]
[1737983730021,0.10285718,101520.0,101510.0,0.3608]
[1737983730318,0.00147839,101530.0,101510.0,0.3608]
[1737983730524,0.11035066,101520.0,101510.0,0.55787]
[1737983730723,0.11035066,101520.0,101510.0,0.3608]
[1737983730928,0.00147839,101530.0,101510.0,0.3608]
[1737983731229,0.11182905,101530.0,101520.0,0.3608]
[1737983731726,0.11182905,101530.0,101520.0,0.557855]
[1737983731922,0.11182905,101530.0,101510.0,0.3608]
[1737983732124,0.30887605,101530.0,101510.0,0.3608]
[1737983732321,0.47262905,101530.0,101510.0,0.3608]
[1737983732523,0.197055,101520.0,101510.0,0.3608]
[1737983732825,0.30825864,101520.0,101510.0,0.3608]
[1737983733031,0.197075,101510.0,101500.0,0.00014775]
[1737983733327,0.19712,101490.0,101470.0,0.3608]
[1737983733530,0.197133,101480.0,101460.0,0.36227836]
[1737983733924,0.1133346,101480.0,101460.0,0.36227836]
[1737983734126,0.3104786,101480.0,101460.0,0.36227836]
[1737983734328,0.3608,101470.0,101450.0,0.3608]
[1737983734630,0.57692893,101460.0,101420.0,0.0014789]
[1737983734827,0.3608,101430.0,101410.0,0.3608]
[1737983735024,0.47180909,101460.0,101450.0,0.00014775]
[1737983735229,0.557972,101460.0,101450.0,0.00014775]
[1737983735530,0.11100909,101440.0,101430.0,0.558031]
[1737983735729,0.46580083,101460.0,101440.0,0.00014775]
[1737983735935,0.557976,101460.0,101440.0,0.36094775]
[1737983736146,0.66297683,101460.0,101440.0,0.36094775]
[1737983736431,0.30217683,101460.0,101450.0,0.3608]
[1737983736635,0.10500083,101460.0,101450.0,0.3608]
[1737983737030,0.10500083,101460.0,101440.0,0.36094775]